bitfinex-derivatives/quotes_BTCF0:USTF0_20241005
["timestamp","ask_amount","ask_price","bid_price","bid_amount"]
[1728149931641,0.30434882,62046.0,62045.0,0.35372622]
[1728149931844,0.30434882,62046.0,62045.0,0.46632895]
[1728149932450,0.0075,62050.0,62049.0,0.056404]
[1728149932653,0.0075,62054.0,62051.0,0.056401]
[1728149932949,0.13584752,62055.0,62053.0,0.12]
[1728149933153,0.13584752,62055.0,62054.0,0.27231922]
[1728149933478,0.13584752,62055.0,62054.0,0.12282447]
[1728149933741,0.13584752,62055.0,62053.0,0.12]
[1728149933951,0.13584752,62055.0,62054.0,0.12281062]
[1728149934449,0.13584752,62055.0,62054.0,0.22347748]
[1728149934837,0.13584752,62055.0,62054.0,0.21947748]
[1728149935444,0.13584752,62055.0,62054.0,0.12281062]
[1728149935950,0.13584752,62055.0,62054.0,0.12581062]
[1728149936748,0.13584752,62055.0,62054.0,0.12981062]
[1728149937242,0.13584752,62055.0,62054.0,0.007]
[1728149937453,0.18531406,62055.0,62054.0,0.007]
[1728149939352,0.30531406,62055.0,62054.0,0.007]
[1728149939552,0.36311532,62055.0,62054.0,0.007]
[1728149942248,0.36311543,62055.0,62054.0,0.007]
[1728149942651,0.21456691,62055.0,62054.0,0.183399]
[1728149942955,0.15676565,62055.0,62054.0,0.183399]
[1728149943549,0.10036665,62055.0,62054.0,0.183399]
[1728149944451,0.3683,62057.0,62055.0,0.056398]
[1728149944643,0.3608,62057.0,62056.0,0.12280692]
[1728149945060,0.38948706,62057.0,62056.0,0.12280692]
[1728149945357,0.44588306,62057.0,62056.0,0.2032693]
[1728149945955,0.44588306,62057.0,62056.0,0.08046238]
[1728149946151,0.44588306,62057.0,62056.0,0.08246238]
[1728149946750,0.417196,62057.0,62056.0,0.26166809]
[1728149946956,0.417196,62057.0,62056.0,0.18120531]
[1728149947661,0.417196,62057.0,62056.0,0.18220531]
[1728149950453,0.056396,62057.0,62056.0,0.18220531]
[1728149950752,0.3608,62057.0,62056.0,0.18220531]
[1728149951862,0.3608,62057.0,62056.0,0.18220272]
[1728149952359,0.3608,62057.0,62056.0,0.059397]
[1728149955362,0.056395,62059.0,62056.0,0.003]
[1728149955558,0.056395,62059.0,62057.0,0.056396]
[1728149955855,0.3608,62058.0,62057.0,0.056396]
[1728149956962,0.3608,62058.0,62057.0,0.057396]
[1728149958264,0.3608,62058.0,62057.0,0.10567564]
[1728149959056,0.3608,62058.0,62057.0,0.057396]
[1728149959457,0.46806158,62058.0,62057.0,0.057396]
[1728149960065,0.10726158,62058.0,62057.0,0.057396]
[1728149960367,0.41026367,62058.0,62057.0,0.057396]
[1728149960555,0.46806158,62058.0,62057.0,0.057396]
[1728149961359,0.41859791,62058.0,62057.0,0.057396]
[1728149962074,0.46806131,62058.0,62057.0,0.057396]
[1728149962571,0.50752341,62058.0,62057.0,0.057396]
[1728149963974,0.50752305,62058.0,62057.0,0.057396]
[1728149964360,0.56391905,62058.0,62057.0,0.057396]
[1728149965960,0.50752305,62058.0,62057.0,0.057396]
[1728149966280,0.56391905,62058.0,62057.0,0.057396]
[1728149966658,0.52445696,62058.0,62057.0,0.057396]
[1728149967263,0.417196,62058.0,62057.0,0.13786208]
[1728149969464,0.417196,62058.0,62057.0,0.26066587]
[1728149970359,0.056396,62058.0,62057.0,0.26066587]
[1728149970564,0.417196,62058.0,62057.0,0.26066587]
[1728149971076,0.056396,62058.0,62057.0,0.26066587]
[1728149971374,0.417196,62058.0,62057.0,0.26066587]
[1728149971576,0.056396,62058.0,62057.0,0.26066587]
[1728149971763,0.417196,62058.0,62057.0,0.26066587]
[1728149972469,0.056396,62058.0,62057.0,0.26066587]
[1728149972670,0.417196,62058.0,62057.0,0.26066587]
[1728149972870,0.056396,62058.0,62057.0,0.26066587]
[1728149973072,0.417196,62058.0,62057.0,0.26066587]
[1728149973579,0.056396,62058.0,62057.0,0.26066587]
[1728149973775,0.417196,62058.0,62057.0,0.26066587]
[1728149974170,0.417196,62058.0,62057.0,0.057396]
[1728149975175,0.056396,62058.0,62057.0,0.057396]
[1728149975475,0.417196,62058.0,62057.0,0.057396]
[1728149976371,0.056396,62058.0,62057.0,0.12186111]
[1728149976875,0.417196,62058.0,62057.0,0.12186111]
[1728149978179,0.056396,62058.0,62057.0,0.12186111]
[1728149978487,0.417196,62058.0,62057.0,0.12186111]
[1728149979077,0.056396,62058.0,62057.0,0.12186111]
[1728149979272,0.417196,62058.0,62057.0,0.12186111]
[1728149980868,0.417196,62058.0,62057.0,0.057396]
[1728149981276,0.417196,62058.0,62057.0,0.12188903]
[1728149981480,0.056396,62058.0,62057.0,0.057396]
[1728149981775,0.417196,62058.0,62057.0,0.057396]
[1728149982272,0.52445656,62058.0,62057.0,0.057396]
[1728149983173,0.56391877,62058.0,62057.0,0.057396]
[1728149984275,0.77346896,62058.0,62057.0,0.057396]
[1728149984676,0.56391877,62058.0,62057.0,0.057396]
[1728149984979,0.52445656,62058.0,62057.0,0.057396]
[1728149985176,0.7734668,62058.0,62057.0,0.057396]
[1728149985868,0.56391899,62058.0,62057.0,0.057396]
[1728149986585,0.52445656,62058.0,62057.0,0.057396]
[1728149987579,0.52445696,62058.0,62057.0,0.057396]
[1728149989284,0.52445696,62058.0,62057.0,0.26066687]
[1728149989285,0.417196,62058.0,62057.0,0.26066687]
[1728149995493,0.417196,62058.0,62057.0,0.18020079]
[1728149995991,0.417196,62058.0,62057.0,0.26081263]
[1728149996789,0.056396,62058.0,62057.0,0.26081263]
[1728149996992,0.417196,62058.0,62057.0,0.26081263]
[1728149997190,0.3608,62058.0,62057.0,0.38081263]
[1728149997493,0.46806141,62058.0,62057.0,0.177396]
[1728149998693,0.10726141,62058.0,62057.0,0.177396]
[1728149998895,0.04946359,62058.0,62057.0,0.177396]
[1728149999095,0.41026359,62058.0,62057.0,0.177396]
[1728149999392,0.46806141,62058.0,62057.0,0.177396]
[1728149999994,0.10726141,62058.0,62057.0,0.177396]
[1728150000199,0.41026359,62058.0,62057.0,0.177396]
[1728150000494,0.46806141,62058.0,62057.0,0.177396]
[1728150001095,0.10726141,62058.0,62057.0,0.177396]
[1728150001289,0.41026359,62058.0,62057.0,0.177396]
[1728150001491,0.10726141,62058.0,62057.0,0.177396]
[1728150001703,0.41026359,62058.0,62057.0,0.177396]
[1728150002002,0.46806141,62058.0,62057.0,0.177396]
[1728150002995,0.10726141,62058.0,62057.0,0.177396]
[1728150003198,0.41026359,62058.0,62057.0,0.177396]
[1728150003396,0.46806141,62058.0,62057.0,0.177396]
[1728150004403,0.3608,62058.0,62057.0,0.177396]
[1728150004598,0.03641523,62060.0,62057.0,0.177396]
[1728150004806,0.03641523,62060.0,62059.0,0.04836727]
[1728150005008,0.38971523,62060.0,62059.0,0.10476227]
[1728150006899,0.3608,62060.0,62059.0,0.056395]
[1728150008503,0.3608,62060.0,62059.0,0.1047633]
[1728150008805,0.0463,62061.0,62059.0,0.0483683]
[1728150009008,0.3608,62060.0,62059.0,0.1047633]
[1728150009203,0.3608,62060.0,62059.0,0.056395]
[1728150012310,0.5075168,62060.0,62059.0,0.056395]
[1728150012804,0.1467168,62060.0,62059.0,0.056395]
[1728150013012,0.08892179,62060.0,62059.0,0.056395]
[1728150013706,0.29848793,62060.0,62059.0,0.056395]
[1728150014897,0.08892179,62060.0,62059.0,0.056395]
[1728150016409,0.0889231,62060.0,62059.0,0.056395]
[1728150016902,0.14671811,62060.0,62059.0,0.056395]
[1728150019405,0.40854,62061.0,62060.0,0.056394]
[1728150019708,0.4071,62061.0,62060.0,0.10474711]
[1728150021108,0.3608,62061.0,62060.0,0.10474711]
[1728150021414,0.3618,62061.0,62060.0,0.60428333]
[1728150021619,0.3618,62061.0,62060.0,0.539794]
[1728150021806,0.3618,62061.0,62060.0,1.139794]
[1728150022000,0.001,62061.0,62060.0,1.34319353]
[1728150022211,0.001,62061.0,62060.0,1.34310421]
[1728150022415,0.001,62061.0,62060.0,1.22031652]
[1728150022615,0.001,62061.0,62060.0,1.34309966]
[1728150022913,0.0075,62065.0,62064.0,0.05639]
[1728150023103,0.0075,62067.0,62066.0,0.056388]
[1728150023310,0.3608,62068.0,62067.0,0.056387]
[1728150023502,0.3608,62068.0,62067.0,0.176387]
[1728150024515,0.3618,62068.0,62067.0,0.176387]
[1728150025024,0.3618,62068.0,62067.0,0.056387]
[1728150027513,0.50849969,62068.0,62067.0,0.05012218]
[1728150029415,0.50849969,62068.0,62067.0,0.17012218]
[1728150030916,0.50849766,62068.0,62067.0,0.17012218]
[1728150033520,0.50849766,62068.0,62067.0,0.12]
[1728150034523,0.3618,62068.0,62067.0,0.176387]
[1728150034728,0.538186,62068.0,62067.0,0.056387]
[1728150034913,0.538186,62068.0,62063.0,0.05639]
[1728150034914,0.056388,62067.0,62063.0,0.05639]
[1728150035222,0.12,62064.0,62063.0,0.05639]
[1728150036511,0.12,62064.0,62063.0,0.05679]
[1728150037616,0.121,62064.0,62063.0,0.05679]
[1728150039134,0.17739,62064.0,62063.0,0.0004]
[1728150040218,0.121,62064.0,62061.0,0.0038]
[1728150040431,0.056395,62059.0,62057.0,0.0038]
[1728150040625,0.056395,62059.0,62056.0,0.056397]
[1728150040626,0.101396,62058.0,62056.0,0.056397]
[1728150040823,0.0004,62057.0,62056.0,0.056397]
[1728150041022,0.0469,62057.0,62056.0,0.056397]
[1728150042422,0.0469,62057.0,62056.0,0.1046972]
[1728150043132,0.0469,62057.0,62056.0,0.1086972]
[1728150043333,0.0469,62057.0,62056.0,0.1146972]
[1728150047347,0.0469,62057.0,62056.0,0.066397]
[1728150048649,0.07541934,62057.0,62056.0,0.066397]
[1728150049658,0.12488122,62057.0,62056.0,0.066397]
[1728150051451,0.12488122,62057.0,62056.0,0.01]
[1728150051643,0.18127722,62057.0,62056.0,0.01]
[1728150055054,0.3422268,62057.0,62056.0,0.01]
[1728150055264,0.18127777,62057.0,62056.0,0.01]
[1728150057056,0.18127777,62057.0,62053.0,0.0038]
[1728150057057,0.056399,62054.0,62053.0,0.0038]
[1728150057257,0.10626143,62054.0,62050.0,0.0038]
[1728150057562,0.10626143,62054.0,62050.0,0.04827817]
[1728150057563,0.0004,62051.0,62050.0,0.04827817]
[1728150057862,0.0004,62051.0,62048.0,0.18441647]
[1728150058052,0.12,62050.0,62049.0,0.056404]
[1728150059657,0.121,62050.0,62049.0,0.069404]
[1728150061147,0.122,62050.0,62049.0,0.080404]
[1728150062649,0.002,62050.0,62049.0,0.080404]
[1728150063160,0.002,62050.0,62049.0,0.14482047]
[1728150064553,0.12,62052.0,62051.0,0.056402]
[1728150064749,0.12,62052.0,62051.0,0.13728769]
[1728150065151,0.12,62052.0,62051.0,0.2600991]
[1728150065457,0.12,62052.0,62051.0,0.13728769]
[1728150065851,0.121,62052.0,62051.0,0.2710983]
[1728150066051,0.121,62052.0,62051.0,0.15728769]
[1728150066262,0.121,62052.0,62051.0,0.28009904]
[1728150067152,0.121,62052.0,62051.0,0.19961335]
[1728150067457,0.177401,62052.0,62051.0,0.19961335]
[1728150067659,0.177401,62052.0,62051.0,0.28013321]
[1728150067859,0.177401,62052.0,62051.0,0.19961335]
[1728150072659,0.177401,62052.0,62051.0,0.076802]
[1728150072660,0.28466893,62052.0,62051.0,0.076802]
[1728150072860,0.10826793,62052.0,62051.0,0.196802]
[1728150073963,0.10826793,62052.0,62051.0,0.22591032]
[1728150077764,0.05046347,62052.0,62051.0,0.22591032]
[1728150079366,0.05046347,62052.0,62051.0,1.30939032]
[1728150079672,0.0004,62054.0,62053.0,0.0564]
[1728150079967,0.0004,62054.0,62053.0,0.38014661]
[1728150080264,0.0004,62054.0,62053.0,1.46358661]
[1728150080465,0.0004,62054.0,62053.0,1.50928661]
[1728150080855,0.0004,62054.0,62053.0,1.44473738]
[1728150081062,0.0014,62054.0,62053.0,1.44473738]
[1728150081769,0.0014,62054.0,62053.0,0.36129738]
[1728150081967,0.0014,62054.0,62053.0,0.44180541]
[1728150082268,0.0014,62054.0,62053.0,0.27330803]
[1728150082461,0.0014,62054.0,62053.0,0.39610551]
[1728150083069,0.0014,62054.0,62053.0,0.31559748]
[1728150083270,0.0014,62054.0,62053.0,0.39610069]
[1728150083571,0.0014,62054.0,62053.0,0.1928]
[1728150085565,0.0014,62054.0,62053.0,0.0728]
[1728150086671,0.0014,62054.0,62053.0,0.1928]
[1728150087671,0.05086144,62054.0,62053.0,0.1928]
[1728150092269,0.05086168,62054.0,62053.0,0.1928]
[1728150094672,0.0014,62054.0,62053.0,0.1928]
[1728150101382,0.0014,62054.0,62053.0,0.27330321]
[1728150102384,0.0014,62054.0,62053.0,0.39610205]
[1728150102581,0.0014,62054.0,62053.0,0.1928]
[1728150102784,0.05086172,62054.0,62053.0,0.1928]
[1728150104677,0.09032233,62054.0,62053.0,0.1928]
[1728150109802,0.0014,62054.0,62053.0,0.31559721]
[1728150111786,0.0014,62054.0,62053.0,0.31559629]
[1728150117687,0.09032116,62054.0,62053.0,0.1928]
[1728150117890,0.29947734,62054.0,62053.0,0.1928]
[1728150119996,0.09032116,62054.0,62053.0,0.1928]
[1728150121698,0.29947734,62054.0,62053.0,0.1928]
[1728150124093,0.09032116,62054.0,62053.0,0.1928]
[1728150125007,0.09032116,62054.0,62053.0,0.31559548]
[1728150125008,0.0014,62054.0,62053.0,0.31559548]
[1728150125309,0.0014,62054.0,62053.0,0.31559547]
[1728150129504,0.0014,62054.0,62053.0,0.41226233]
[1728150129709,0.0014,62054.0,62053.0,0.31559547]
[1728150130214,0.0014,62054.0,62053.0,0.31559582]
[1728150132824,0.0014,62054.0,62053.0,0.24113128]
[1728150134512,0.0014,62054.0,62053.0,0.1928]
[1728150139923,0.09031833,62054.0,62053.0,0.1928]
[1728150142829,0.0079,62057.0,62056.0,0.056397]
[1728150143027,0.0004,62057.0,62056.0,0.176797]
[1728150144114,0.0004,62057.0,62056.0,0.180797]
[1728150144926,0.0004,62057.0,62056.0,0.186797]
[1728150146919,0.008,62062.0,62061.0,0.056393]
[1728150147227,0.0004,62062.0,62061.0,0.25679537]
[1728150147423,0.0004,62062.0,62061.0,0.176793]
[1728150148117,0.0004,62062.0,62061.0,0.177793]
[1728150149027,0.0014,62062.0,62061.0,0.177793]
[1728150149527,0.0014,62062.0,62061.0,0.38097113]
[1728150149722,0.0014,62062.0,62061.0,0.38097089]
[1728150150020,0.0014,62062.0,62061.0,0.30056852]
[1728150151423,0.0014,62062.0,62061.0,0.32993553]
[1728150152329,0.0014,62062.0,62061.0,0.37323553]
[1728150154428,0.0014,62062.0,62061.0,0.37322835]
[1728150154632,0.0076,62069.0,62068.0,0.056386]
[1728150154832,0.0076,62076.0,62072.0,0.056383]
[1728150155034,0.1619,62078.0,62072.0,0.176383]
[1728150155231,0.1619,62078.0,62072.0,0.176783]
[1728150156140,0.12,62076.0,62072.0,0.176783]
[1728150156833,0.0431,62073.0,62072.0,0.177783]
[1728150157238,0.0471,62073.0,62072.0,0.178783]
[1728150160633,0.0471,62073.0,62072.0,0.2085105]
[1728150162830,0.09654796,62073.0,62072.0,0.2085105]
[1728150163033,0.13599801,62073.0,62072.0,0.2085105]
[1728150163240,0.25599801,62073.0,62072.0,0.0885105]
[1728150163445,0.31238001,62073.0,62072.0,0.0024]
[1728150164536,0.37015956,62073.0,62072.0,0.058783]
[1728150165236,0.37015956,62073.0,62072.0,0.0024]
[1728150165932,0.39890824,62073.0,62072.0,0.0024]
[1728150166842,0.34252624,62073.0,62068.0,0.05074804]
[1728150167145,0.1204,62069.0,62068.0,0.05074804]
[1728150167346,0.26707756,62069.0,62068.0,0.05074804]
[1728150167544,0.31027756,62069.0,62068.0,0.05074804]
[1728150167948,0.31027756,62069.0,62068.0,0.05174804]
[1728150168249,0.31027756,62069.0,62068.0,0.05274804]
[1728150168548,0.31427756,62069.0,62068.0,0.05274804]
[1728150168746,0.31527756,62069.0,62068.0,0.05274804]
[1728150168947,0.31528526,62069.0,62068.0,0.05274804]
[1728150169940,0.1686,62069.0,62068.0,0.05274804]
[1728150177044,0.25750562,62069.0,62068.0,0.05274804]
[1728150178051,0.31529012,62069.0,62068.0,0.05274804]
[1728150178245,0.25750562,62069.0,62068.0,0.05274804]
[1728150184954,0.1686,62069.0,62068.0,0.05274804]
[1728150188263,0.1686,62069.0,62068.0,0.10091643]
[1728150188853,0.1686,62069.0,62068.0,0.05274804]
[1728150189456,0.1686,62069.0,62068.0,0.10091643]
[1728150190467,0.1254,62069.0,62068.0,0.10091643]
[1728150192050,0.27209474,62069.0,62068.0,0.05274804]
[1728150193566,0.21430842,62069.0,62068.0,0.05274804]
[1728150193864,0.27209474,62069.0,62068.0,0.05274804]
[1728150194056,0.15209474,62069.0,62068.0,0.05274804]
[1728150196759,0.15209542,62069.0,62068.0,0.05274804]
[1728150200269,0.0054,62069.0,62068.0,0.11697256]
[1728150207068,0.15209112,62069.0,62068.0,0.002]
[1728150207469,0.15209112,62069.0,62068.0,0.058386]
[1728150213074,0.15209112,62069.0,62068.0,0.03736394]
[1728150213678,0.20847712,62069.0,62068.0,0.03736394]
[1728150215178,0.061786,62069.0,62068.0,0.10158846]
[1728150222285,0.061786,62069.0,62068.0,0.03736394]
[1728150230189,0.20847643,62069.0,62068.0,0.03736394]
[1728150237291,0.061786,62069.0,62068.0,0.03736394]
[1728150252304,0.20847664,62069.0,62068.0,0.03736394]
[1728150252900,0.15069194,62069.0,62068.0,0.03736394]
[1728150253112,0.20847664,62069.0,62068.0,0.03736394]
[1728150253906,0.15069194,62069.0,62068.0,0.03736394]
[1728150256599,0.15269194,62069.0,62068.0,0.03736394]
[1728150257103,0.15369194,62069.0,62068.0,0.03736394]
[1728150258203,0.21147647,62069.0,62068.0,0.03736394]
[1728150259115,0.21047647,62069.0,62068.0,0.03736394]
[1728150260315,0.063786,62069.0,62068.0,0.03736394]
[1728150267315,0.21047643,62069.0,62068.0,0.03736394]
[1728150270520,0.21047643,62069.0,62063.0,0.04027227]
[1728150270521,0.15409043,62069.0,62063.0,0.04027227]
[1728150270720,0.056389,62065.0,62064.0,0.05639]
[1728150270917,0.14529481,62065.0,62064.0,0.05639]
[1728150271916,0.14529481,62065.0,62061.0,0.3612]
[1728150271917,0.08890581,62065.0,62063.0,0.001]
[1728150272221,0.30869581,62064.0,62063.0,0.001]
[1728150272523,0.30869581,62064.0,62061.0,0.417593]
[1728150272524,0.056392,62062.0,62061.0,0.417593]
[1728150272817,0.14569781,62062.0,62061.0,0.417593]
[1728150273817,0.14570614,62062.0,62061.0,0.417593]
[1728150274217,0.14570614,62062.0,62061.0,0.418593]
[1728150274913,0.14570614,62062.0,62061.0,0.421593]
[1728150275115,0.14570614,62062.0,62061.0,0.060793]
[1728150275413,0.056792,62062.0,62061.0,0.26386201]
[1728150276614,0.056792,62062.0,62061.0,0.060793]
[1728150277627,0.08585091,62062.0,62061.0,0.060793]
[1728150278013,0.08585091,62062.0,62061.0,0.0044]
[1728150278416,0.08585091,62062.0,62061.0,0.06870208]
[1728150280331,0.44665091,62062.0,62061.0,0.06870208]
[1728150280621,0.44665091,62062.0,62061.0,0.0044]
[1728150281727,0.44665091,62062.0,62061.0,0.0526116]
[1728150281919,0.44665091,62062.0,62061.0,0.0044]
[1728150282318,0.59337015,62062.0,62061.0,0.0044]
[1728150283324,0.08932487,62062.0,62061.0,0.1244]
[1728150283519,0.08932487,62062.0,62061.0,0.180793]
[1728150284028,0.17738611,62062.0,62061.0,0.180793]
[1728150284227,0.26631098,62062.0,62061.0,0.180793]
[1728150284426,0.26631485,62062.0,62061.0,0.180793]
[1728150284630,0.08932487,62062.0,62061.0,0.180793]
[1728150285929,0.08932487,62062.0,62061.0,0.20969275]
[1728150286541,0.1613055,62062.0,62061.0,0.20969275]
[1728150286828,0.25023037,62062.0,62061.0,0.20969275]
[1728150289134,0.08932487,62062.0,62061.0,0.20969275]
[1728150290425,0.0004,62062.0,62061.0,0.20969275]
[1728150290826,0.0004,62062.0,62061.0,0.27393139]
[1728150291131,0.0004,62062.0,62061.0,0.2739327]
[1728150291527,0.0004,62062.0,62061.0,0.27393507]
[1728150292219,0.0004,62062.0,62061.0,0.20969275]
[1728150297420,0.08930754,62062.0,62061.0,0.20969275]
[1728150297926,0.08930799,62062.0,62061.0,0.20969275]
[1728150305542,0.0004,62062.0,62061.0,0.20969275]
[1728150310543,0.0004,62062.0,62061.0,0.2899734]
[1728150311551,0.0004,62062.0,62061.0,0.41275385]
[1728150312434,0.0004,62062.0,62061.0,0.3324732]
[1728150315234,0.0004,62062.0,62061.0,0.33247286]
[1728150315540,0.0004,62062.0,62061.0,0.21247286]
[1728150315739,0.0004,62062.0,62061.0,0.33247286]
[1728150320542,0.0004,62062.0,62061.0,0.20969275]
[1728150320543,0.03985475,62062.0,62061.0,0.20969275]
[1728150320846,0.08930884,62062.0,62061.0,0.20969275]
[1728150324845,0.0004,62062.0,62061.0,0.20969275]
[1728150325146,0.03985494,62062.0,62061.0,0.20969275]
[1728150325347,0.08930903,62062.0,62061.0,0.20969275]
[1728150327545,0.0004,62062.0,62061.0,0.33247307]
[1728150334650,0.056386,62068.0,62064.0,0.056389]
[1728150334853,0.056386,62068.0,62065.0,0.21936882]
[1728150335054,0.056386,62068.0,62067.0,0.0004]
[1728150335255,0.056386,62068.0,62067.0,0.12318032]
[1728150335959,0.056386,62068.0,62067.0,0.17956732]
[1728150336450,0.057386,62068.0,62067.0,0.17956732]
[1728150337048,0.058386,62068.0,62067.0,0.17956732]
[1728150337245,0.061386,62068.0,62067.0,0.17956732]
[1728150337659,0.063386,62068.0,62067.0,0.17956732]
[1728150342561,0.15229425,62068.0,62067.0,0.056787]
[1728150345263,0.15229441,62068.0,62067.0,0.056787]
[1728150349667,0.063386,62068.0,62067.0,0.12117967]
[1728150354062,0.063386,62068.0,62067.0,0.06479267]
[1728150354268,0.063386,62068.0,62067.0,0.0004]
[1728150354566,0.063386,62068.0,62067.0,0.0486975]
[1728150355377,0.063386,62068.0,62067.0,0.0004]
[1728150356581,0.063386,62068.0,62067.0,0.0486975]
[1728150357680,0.15229703,62068.0,62067.0,0.0004]
[1728150358680,0.15229703,62068.0,62067.0,0.056787]
[1728150360375,0.21008504,62068.0,62067.0,0.056787]
[1728150361376,0.15369904,62068.0,62067.0,0.056787]
[1728150363176,0.15369783,62068.0,62067.0,0.056787]
[1728150364778,0.007,62068.0,62067.0,0.056787]
[1728150366489,0.3678,62068.0,62067.0,0.056787]
[1728150369383,0.3678,62068.0,62067.0,0.10504914]
[1728150371477,0.3678,62068.0,62067.0,0.056787]
[1728150372782,0.51449642,62068.0,62067.0,0.056787]
[1728150373694,0.15369642,62068.0,62067.0,0.056787]
[1728150374088,0.09590944,62068.0,62067.0,0.056787]
[1728150374394,0.15369642,62068.0,62067.0,0.056787]
[1728150378591,0.09590944,62068.0,62067.0,0.056787]
[1728150378993,0.15369642,62068.0,62067.0,0.056787]
[1728150379783,0.007,62068.0,62067.0,0.056787]
[1728150380793,0.007,62068.0,62067.0,0.10506589]
[1728150384593,0.007,62068.0,62067.0,0.056787]
[1728150385103,0.3678,62068.0,62067.0,0.056787]
[1728150387805,0.51449858,62068.0,62067.0,0.056787]
[1728150388996,0.57088458,62068.0,62067.0,0.056787]
[1728150390401,0.57088458,62068.0,62067.0,0.0004]
[1728150391216,0.05639,62064.0,62063.0,0.056391]
[1728150391499,0.26570075,62064.0,62063.0,0.056391]
[1728150392902,0.056392,62062.0,62061.0,0.0004]
[1728150393088,0.14530275,62062.0,62061.0,0.0004]
[1728150393288,0.14570275,62062.0,62061.0,0.0004]
[1728150394489,0.14570275,62062.0,62061.0,0.0034]
[1728150394803,0.056792,62062.0,62061.0,0.0054]
[1728150397595,0.056792,62062.0,62061.0,0.05363515]
[1728150397998,0.08642808,62062.0,62061.0,0.0054]
[1728150398506,0.44722808,62062.0,62061.0,0.05363631]
[1728150399902,1.53062808,62062.0,62061.0,0.05363631]
[1728150400099,1.53062808,62062.0,62061.0,0.0054]
[1728150403801,0.93062808,62062.0,62061.0,0.0054]
[1728150407007,0.44722808,62062.0,62061.0,0.0054]
[1728150407310,0.44722808,62062.0,62052.0,0.0024172]
[1728150407311,0.056399,62054.0,62052.0,0.0024172]
[1728150407513,0.056394,62060.0,62052.0,0.0024172]
[1728150407514,0.0564,62053.0,62052.0,0.0024172]
[1728150407811,0.0969,62053.0,62052.0,0.0024172]
[1728150408410,0.056401,62052.0,62051.0,0.0004]
[1728150408608,0.176801,62052.0,62051.0,0.0004]
[1728150409702,0.26573832,62052.0,62051.0,0.0004]
[1728150410112,0.26673832,62052.0,62051.0,0.0254]
[1728150410704,0.75021832,62052.0,62051.0,0.0254]
[1728150410910,0.26673832,62052.0,62051.0,0.0254]
[1728150411908,0.2961609,62052.0,62051.0,0.0254]
[1728150412713,0.1761609,62052.0,62051.0,0.0254]
[1728150412909,0.2961609,62052.0,62051.0,0.0254]
[1728150414608,0.35396624,62052.0,62051.0,0.0254]
[1728150416517,0.14673832,62052.0,62051.0,0.081802]
[1728150416819,0.09033732,62052.0,62051.0,0.081802]
[1728150417115,0.09033732,62052.0,62051.0,0.168702]
[1728150417915,0.0014,62052.0,62051.0,0.168702]
[1728150418521,0.0014,62052.0,62051.0,0.21693831]
[1728150419912,0.057801,62052.0,62051.0,0.21693831]
[1728150420923,0.0014,62052.0,62051.0,0.21693831]
[1728150421119,0.057801,62052.0,62051.0,0.21693831]
[1728150421521,0.057801,62052.0,62051.0,0.168702]
[1728150423427,0.0014,62052.0,62051.0,0.288702]
[1728150425122,0.0014,62052.0,62051.0,0.33692296]
[1728150425419,0.0004,62053.0,62051.0,0.2323]
[1728150425623,0.0113,62057.0,62051.0,0.2323]
[1728150425624,0.0113,62057.0,62056.0,0.056397]
[1728150425822,0.1238,62061.0,62056.0,0.056397]
[1728150425823,0.12,62061.0,62059.0,0.056395]
[1728150426021,0.3725,62062.0,62059.0,0.056395]
[1728150426022,0.3612,62062.0,62060.0,0.0004]
[1728150426217,0.3612,62062.0,62061.0,0.056793]
[1728150426218,0.0004,62062.0,62061.0,0.056793]
[1728150426423,0.0004,62062.0,62061.0,0.176793]
[1728150427026,0.0004,62062.0,62061.0,0.22500201]
[1728150427621,0.0004,62062.0,62061.0,1.260193]
[1728150428522,0.0004,62062.0,62061.0,1.30833741]
[1728150428720,0.0004,62062.0,62061.0,1.34663741]
[1728150428924,0.0004,62062.0,62061.0,1.35063741]
[1728150429621,0.0004,62062.0,62061.0,1.302493]
[1728150430627,0.0004,62062.0,62061.0,0.702493]
[1728150432422,0.0004,62062.0,62061.0,0.099093]
[1728150432624,0.0004,62062.0,62061.0,0.219093]
[1728150433130,0.08930982,62062.0,62061.0,0.219093]
[1728150433932,0.08931095,62062.0,62061.0,0.219093]
[1728150438022,0.08931095,62062.0,62061.0,0.256993]
[1728150438834,0.08930917,62062.0,62061.0,0.256993]
[1728150439824,0.0038,62067.0,62061.0,0.256993]
[1728150440024,0.418627,62068.0,62066.0,0.1204]
[1728150440335,0.417187,62068.0,62067.0,0.0004]
[1728150441035,0.420187,62068.0,62067.0,0.0004]
[1728150441830,0.424187,62068.0,62067.0,0.0004]
[1728150442731,0.064387,62068.0,62067.0,0.0004]
[1728150444440,0.064387,62068.0,62067.0,0.056787]
[1728150446333,0.008,62068.0,62067.0,0.056787]
[1728150446748,0.008,62068.0,62067.0,0.08610029]
[1728150447938,0.04745159,62068.0,62067.0,0.08610029]
[1728150448442,0.09690148,62068.0,62067.0,0.08610029]
[1728150454946,0.008,62068.0,62067.0,0.08610029]
[1728150455549,0.008,62068.0,62067.0,0.15049296]
[1728150461756,0.008,62068.0,62067.0,0.08610029]
[1728150462049,0.008,62068.0,62067.0,0.20610029]
[1728150463056,0.09690562,62068.0,62067.0,0.20610029]
[1728150467753,0.09690512,62068.0,62067.0,0.20610029]
[1728150469964,0.09690512,62068.0,62067.0,0.27049296]
[1728150469965,0.008,62068.0,62067.0,0.27049296]
[1728150474669,0.008,62068.0,62067.0,0.20610029]
[1728150478173,0.04745303,62068.0,62067.0,0.20610029]
[1728150478561,0.09690472,62068.0,62067.0,0.20610029]
[1728150481172,0.09690471,62068.0,62067.0,0.20610029]
[1728150482774,0.09690471,62068.0,62067.0,0.056787]
[1728150482979,0.21690471,62068.0,62067.0,0.056787]
[1728150483276,0.09690471,62068.0,62067.0,0.056787]
[1728150484771,0.15329071,62068.0,62067.0,0.056787]
[1728150484972,0.064386,62068.0,62067.0,0.17956249]
[1728150489169,0.008,62068.0,62067.0,0.17956249]
[1728150490874,0.008,62068.0,62067.0,0.17956256]
[1728150492972,0.008,62068.0,62067.0,0.056787]
[1728150499979,0.09690176,62068.0,62067.0,0.056787]